[Event "Late-Titled-Tuesday-Blitz-June-04-2024"]
[Site "Chess.com"]
[Date "2024.06.04"]
[Round "10"]
[White "djano"]
[Black "yobdc"]
[Result "1-0"]
[WhiteElo "2624"]
[BlackElo "2533"]
[TimeControl "180+1"]
[EndTime "15:54:57 PDT"]
[Termination "djano won by checkmate"]

1. e4 {[%clk 0:03:00.9]} 1... c5 {[%clk 0:03:00]} 2. Nc3 {[%clk 0:03:00.2]} 2...
Nc6 {[%clk 0:02:59]} 3. Bb5 {[%clk 0:02:59.4]} 3... Nd4 {[%clk 0:02:58.8]} 4.
Nf3 {[%clk 0:02:59.7]} 4... e6 {[%clk 0:02:53.5]} 5. O-O {[%clk 0:02:59.6]} 5...
Ne7 {[%clk 0:02:51.6]} 6. Nxd4 {[%clk 0:02:57.1]} 6... cxd4 {[%clk 0:02:52.5]}
7. Ne2 {[%clk 0:02:57.4]} 7... Qb6 {[%clk 0:02:47.1]} 8. Bd3 {[%clk 0:02:53.1]}
8... Nc6 {[%clk 0:02:43.7]} 9. c3 {[%clk 0:02:45.1]} 9... Be7 {[%clk 0:02:43.3]}
10. b4 {[%clk 0:02:40]} 10... a6 {[%clk 0:02:39.3]} 11. a4 {[%clk 0:02:35.2]}
11... a5 {[%clk 0:02:09]} 12. b5 {[%clk 0:02:33]} 12... Ne5 {[%clk 0:02:09.1]}
13. Bb1 {[%clk 0:02:33.6]} 13... d3 {[%clk 0:01:56.8]} 14. Nf4 {[%clk
0:02:23.7]} 14... h5 {[%clk 0:01:42.6]} 15. Nxd3 {[%clk 0:02:21.3]} 15... Ng4
{[%clk 0:01:42.7]} 16. Qf3 {[%clk 0:02:02.9]} 16... Qc7 {[%clk 0:01:38.6]} 17.
g3 {[%clk 0:01:55.5]} 17... b6 {[%clk 0:01:34.8]} 18. h3 {[%clk 0:01:43.1]}
18... Nf6 {[%clk 0:01:10.2]} 19. Ne1 {[%clk 0:01:26.3]} 19... Bb7 {[%clk
0:01:10.1]} 20. d4 {[%clk 0:01:25.7]} 20... h4 {[%clk 0:01:00.5]} 21. g4 {[%clk
0:01:19.8]} 21... Rc8 {[%clk 0:00:49.7]} 22. Bd2 {[%clk 0:01:17.7]} 22... d5
{[%clk 0:00:48.6]} 23. e5 {[%clk 0:01:16.3]} 23... Ne4 {[%clk 0:00:48.6]} 24.
Bxe4 {[%clk 0:01:08.1]} 24... dxe4 {[%clk 0:00:49.5]} 25. Qe3 {[%clk 0:01:03.8]}
25... Bd5 {[%clk 0:00:44.1]} 26. Ng2 {[%clk 0:01:03.1]} 26... g5 {[%clk
0:00:40.4]} 27. Rfc1 {[%clk 0:00:59.2]} 27... Qb7 {[%clk 0:00:33.5]} 28. Rc2
{[%clk 0:00:54.6]} 28... Rc4 {[%clk 0:00:32.1]} 29. Qe2 {[%clk 0:00:49.6]} 29...
Kd7 {[%clk 0:00:24.7]} 30. Ne3 {[%clk 0:00:49.8]} 30... Rhc8 {[%clk 0:00:25.2]}
31. Kh2 {[%clk 0:00:48.5]} 31... Qb8 {[%clk 0:00:18.7]} 32. Kg1 {[%clk
0:00:46.7]} 32... Qb7 {[%clk 0:00:18.3]} 33. Qf1 {[%clk 0:00:43.9]} 33... f6
{[%clk 0:00:13.1]} 34. Nxc4 {[%clk 0:00:42.1]} 34... Rxc4 {[%clk 0:00:12.8]} 35.
Be3 {[%clk 0:00:40.3]} 35... Qb8 {[%clk 0:00:11.3]} 36. Rd1 {[%clk 0:00:37.4]}
36... Ke8 {[%clk 0:00:10.7]} 37. exf6 {[%clk 0:00:31.3]} 37... Bxf6 {[%clk
0:00:11.6]} 38. Qe2 {[%clk 0:00:28.8]} 38... Be7 {[%clk 0:00:11.5]} 39. Qd2
{[%clk 0:00:28.4]} 39... Bd6 {[%clk 0:00:04.8]} 40. Bxg5 {[%clk 0:00:28.6]}
40... e3 {[%clk 0:00:02.9]} 41. Qxe3 {[%clk 0:00:28.4]} 41... Bh2+ {[%clk
0:00:03]} 42. Kf1 {[%clk 0:00:28.7]} 42... Qb7 {[%clk 0:00:03.5]} 43. Bxh4
{[%clk 0:00:25.4]} 43... Be4 {[%clk 0:00:01.4]} 44. Re2 {[%clk 0:00:24.3]} 44...
Bg2+ {[%clk 0:00:02.3]} 45. Ke1 {[%clk 0:00:24.7]} 45... Bd5 {[%clk 0:00:03.2]}
46. Qg5 {[%clk 0:00:24.5]} 46... Kd7 {[%clk 0:00:02.7]} 47. Qg7+ {[%clk
0:00:24.3]} 47... Kc8 {[%clk 0:00:02.7]} 48. Qf8+ {[%clk 0:00:24.2]} 48... Kc7
{[%clk 0:00:02.8]} 49. Qd8# {[%clk 0:00:24.6]} 1-0

[Event "Late-Titled-Tuesday-Blitz-June-04-2024"]
[Site "Chess.com"]
[Date "2024.06.04"]
[Round "10"]
[White "Ramosha"]
[Black "GlavkonVVS"]
[Result "1-0"]
[WhiteElo "2635"]
[BlackElo "2544"]
[TimeControl "180+1"]
[EndTime "15:55:00 PDT"]
[Termination "Ramosha won by resignation"]

1. e4 {[%clk 0:02:53.5]} 1... Nf6 {[%clk 0:02:59.8]} 2. e5 {[%clk 0:02:53.3]}
2... Nd5 {[%clk 0:02:59.9]} 3. Nc3 {[%clk 0:02:54]} 3... Nb6 {[%clk 0:02:59.5]}
4. d4 {[%clk 0:02:54.1]} 4... d6 {[%clk 0:02:59.5]} 5. exd6 {[%clk 0:02:55]}
5... cxd6 {[%clk 0:02:59.7]} 6. a3 {[%clk 0:02:55.3]} 6... g6 {[%clk 0:02:59.5]}
7. Bd3 {[%clk 0:02:54.8]} 7... Bg7 {[%clk 0:02:59.5]} 8. Nge2 {[%clk 0:02:55.4]}
8... Nc6 {[%clk 0:02:58.5]} 9. Be3 {[%clk 0:02:55.5]} 9... e5 {[%clk 0:02:51.2]}
10. dxe5 {[%clk 0:02:55.4]} 10... dxe5 {[%clk 0:02:50.8]} 11. O-O {[%clk
0:02:54.6]} 11... Be6 {[%clk 0:02:46.1]} 12. Be4 {[%clk 0:02:51.6]} 12... O-O
{[%clk 0:02:45.1]} 13. b3 {[%clk 0:02:47.1]} 13... Qe7 {[%clk 0:02:31.4]} 14.
Qc1 {[%clk 0:02:33.3]} 14... Rac8 {[%clk 0:02:28]} 15. Rd1 {[%clk 0:02:17.3]}
15... Nd4 {[%clk 0:02:26.7]} 16. Bd3 {[%clk 0:02:12.6]} 16... Rfd8 {[%clk
0:02:18]} 17. Bxd4 {[%clk 0:02:02.4]} 17... exd4 {[%clk 0:02:17.7]} 18. Ne4
{[%clk 0:02:02.2]} 18... Bxb3 {[%clk 0:02:11.1]} 19. Qd2 {[%clk 0:01:56.4]}
19... Bd5 {[%clk 0:01:52]} 20. N2g3 {[%clk 0:01:29.2]} 20... Nc4 {[%clk
0:01:43.2]} 21. Qc1 {[%clk 0:01:19.4]} 21... h5 {[%clk 0:01:39]} 22. Re1 {[%clk
0:01:12.5]} 22... Ne5 {[%clk 0:01:27.9]} 23. Qd1 {[%clk 0:00:58.1]} 23... Qh4
{[%clk 0:01:11.9]} 24. Rb1 {[%clk 0:00:44.7]} 24... Ng4 {[%clk 0:00:55.7]} 25.
h3 {[%clk 0:00:41]} 25... Nxf2 {[%clk 0:00:39.5]} 26. Kxf2 {[%clk 0:00:40.7]}
26... f5 {[%clk 0:00:38]} 27. Kg1 {[%clk 0:00:35.6]} 27... fxe4 {[%clk
0:00:16.8]} 28. Nxe4 {[%clk 0:00:36.5]} 28... Bh6 {[%clk 0:00:15.1]} 29. Qf3
{[%clk 0:00:31.6]} 29... Be3+ {[%clk 0:00:14.7]} 30. Rxe3 {[%clk 0:00:28.7]}
30... dxe3 {[%clk 0:00:13.2]} 31. Nf6+ {[%clk 0:00:29.2]} 31... Kg7 {[%clk
0:00:11]} 32. Nxd5 {[%clk 0:00:29.6]} 32... Qf2+ {[%clk 0:00:11.5]} 33. Qxf2
{[%clk 0:00:25.5]} 33... exf2+ {[%clk 0:00:12.1]} 34. Kxf2 {[%clk 0:00:26.4]}
34... Rxd5 {[%clk 0:00:12.4]} 35. Rxb7+ {[%clk 0:00:27.3]} 35... Kf6 {[%clk
0:00:12.9]} 36. Rxa7 {[%clk 0:00:27.5]} 36... Rd6 {[%clk 0:00:11.1]} 37. a4
{[%clk 0:00:26]} 37... Rc3 {[%clk 0:00:11.1]} 38. a5 {[%clk 0:00:26]} 38... Ra3
{[%clk 0:00:10.9]} 39. a6 {[%clk 0:00:26.5]} 39... Ra2 {[%clk 0:00:11.1]} 40.
Ke3 {[%clk 0:00:26.2]} 40... g5 {[%clk 0:00:10.2]} 41. Rh7 {[%clk 0:00:24.9]}
41... h4 {[%clk 0:00:10.1]} 42. Rh6+ {[%clk 0:00:18.1]} 42... Ke5 {[%clk
0:00:09.9]} 43. Rxd6 {[%clk 0:00:19]} 43... Kxd6 {[%clk 0:00:10]} 44. Ke4 {[%clk
0:00:19.9]} 44... Ke6 {[%clk 0:00:09.3]} 45. Bc4+ {[%clk 0:00:20.1]} 45... Kd6
{[%clk 0:00:09]} 46. Bxa2 {[%clk 0:00:21]} 1-0

[Event "Late-Titled-Tuesday-Blitz-June-04-2024"]
[Site "Chess.com"]
[Date "2024.06.04"]
[Round "10"]
[White "RantomOpening"]
[Black "Heliosis11"]
[Result "0-1"]
[WhiteElo "2536"]
[BlackElo "2408"]
[TimeControl "180+1"]
[EndTime "15:55:00 PDT"]
[Termination "Heliosis11 won by resignation"]

1. e4 {[%clk 0:02:59.9]} 1... c6 {[%clk 0:02:55.2]} 2. c4 {[%clk 0:02:51.1]}
2... e5 {[%clk 0:02:52.1]} 3. Nf3 {[%clk 0:02:50.3]} 3... d6 {[%clk 0:02:52.2]}
4. d4 {[%clk 0:02:50.3]} 4... Nd7 {[%clk 0:02:49.9]} 5. Nc3 {[%clk 0:02:49.8]}
5... Ngf6 {[%clk 0:02:49.5]} 6. Be2 {[%clk 0:02:50.3]} 6... Be7 {[%clk 0:02:48]}
7. O-O {[%clk 0:02:50.8]} 7... O-O {[%clk 0:02:46.7]} 8. h3 {[%clk 0:02:51.2]}
8... Qc7 {[%clk 0:02:47.1]} 9. Be3 {[%clk 0:02:51.2]} 9... Re8 {[%clk
0:02:39.1]} 10. d5 {[%clk 0:02:47.5]} 10... Bf8 {[%clk 0:02:34.9]} 11. Rc1
{[%clk 0:02:46]} 11... c5 {[%clk 0:02:21.8]} 12. a3 {[%clk 0:02:41.4]} 12... a6
{[%clk 0:02:19.9]} 13. b4 {[%clk 0:02:40.5]} 13... b6 {[%clk 0:02:18.1]} 14. Nh2
{[%clk 0:02:36.9]} 14... g6 {[%clk 0:02:14.2]} 15. Qd2 {[%clk 0:02:36.8]} 15...
Bg7 {[%clk 0:02:11.1]} 16. Rb1 {[%clk 0:02:28.2]} 16... Nf8 {[%clk 0:02:06.1]}
17. a4 {[%clk 0:02:27.9]} 17... Bd7 {[%clk 0:01:58.4]} 18. a5 {[%clk 0:02:27.8]}
18... cxb4 {[%clk 0:01:50.7]} 19. axb6 {[%clk 0:02:23.4]} 19... bxc3 {[%clk
0:01:49.8]} 20. Qxc3 {[%clk 0:02:16.4]} 20... Qb7 {[%clk 0:01:49.5]} 21. c5
{[%clk 0:02:14.4]} 21... Nxe4 {[%clk 0:01:48.2]} 22. Qc4 {[%clk 0:02:14.5]}
22... Nxc5 {[%clk 0:01:46.8]} 23. Bxc5 {[%clk 0:02:14.9]} 23... Rec8 {[%clk
0:01:41.9]} 24. Bxd6 {[%clk 0:01:49.2]} 24... Rxc4 {[%clk 0:01:35.3]} 25. Bxc4
{[%clk 0:01:50.1]} 25... Bb5 {[%clk 0:01:28.5]} 26. Bxb5 {[%clk 0:01:47.8]}
26... axb5 {[%clk 0:01:28.6]} 27. Rxb5 {[%clk 0:01:48.7]} 27... Rd8 {[%clk
0:01:29]} 28. Bc7 {[%clk 0:01:45.8]} 28... Rxd5 {[%clk 0:01:28.5]} 29. Rxd5
{[%clk 0:01:46]} 29... Qxd5 {[%clk 0:01:29.4]} 30. Rb1 {[%clk 0:01:44.7]} 30...
Qb7 {[%clk 0:01:29.5]} 31. Ng4 {[%clk 0:01:43.1]} 31... f6 {[%clk 0:01:25.3]}
32. Ne3 {[%clk 0:01:42.5]} 32... Ne6 {[%clk 0:01:15.8]} 33. Nd5 {[%clk
0:01:41.4]} 33... Nxc7 {[%clk 0:00:56.8]} 34. bxc7 {[%clk 0:01:42.3]} 34...
Qxb1+ {[%clk 0:00:56]} 35. Kh2 {[%clk 0:01:42.4]} 35... Qc2 {[%clk 0:00:37.9]}
36. Ne7+ {[%clk 0:01:42]} 36... Kf7 {[%clk 0:00:38.1]} 37. c8=Q {[%clk
0:01:42.9]} 37... Qxc8 {[%clk 0:00:26.6]} 38. Nxc8 {[%clk 0:01:43.8]} 38... Ke6
{[%clk 0:00:26.1]} 39. Nb6 {[%clk 0:01:43.5]} 39... f5 {[%clk 0:00:26.4]} 40.
Na4 {[%clk 0:01:41.1]} 40... e4 {[%clk 0:00:26.8]} 41. Kg1 {[%clk 0:01:36.4]}
41... Bd4 {[%clk 0:00:26.7]} 42. Kf1 {[%clk 0:01:35.3]} 42... Kd5 {[%clk
0:00:27.3]} 43. Ke2 {[%clk 0:01:34]} 43... Kc4 {[%clk 0:00:27.8]} 44. f3 {[%clk
0:01:32.5]} 44... Kb4 {[%clk 0:00:26.2]} 45. fxe4 {[%clk 0:01:33]} 45... fxe4
{[%clk 0:00:27.1]} 46. Nb2 {[%clk 0:01:33.1]} 46... Bxb2 {[%clk 0:00:27.5]} 47.
Ke3 {[%clk 0:01:34]} 47... Kc5 {[%clk 0:00:27.8]} 48. Kxe4 {[%clk 0:01:34.9]}
48... Kd6 {[%clk 0:00:28.7]} 49. h4 {[%clk 0:01:33.1]} 49... Ke6 {[%clk
0:00:29.1]} 50. g4 {[%clk 0:01:33.5]} 50... Kf6 {[%clk 0:00:29.1]} 51. Kf4
{[%clk 0:01:31.7]} 51... Bc1+ {[%clk 0:00:28.9]} 52. Kf3 {[%clk 0:01:31.2]}
52... h6 {[%clk 0:00:27.4]} 53. Ke4 {[%clk 0:01:29.8]} 53... g5 {[%clk
0:00:25.7]} 54. Kf3 {[%clk 0:01:26.1]} 54... Ke5 {[%clk 0:00:25.5]} 55. Kg3
{[%clk 0:01:22.3]} 55... Ke4 {[%clk 0:00:25.6]} 56. Kg2 {[%clk 0:01:22.5]} 56...
Kf4 {[%clk 0:00:25.4]} 57. Kh3 {[%clk 0:01:22.8]} 57... Kf3 {[%clk 0:00:25.3]}
58. h5 {[%clk 0:01:15.7]} 58... Be3 {[%clk 0:00:23.1]} 59. Kh2 {[%clk 0:01:16]}
59... Kxg4 {[%clk 0:00:24]} 60. Kg2 {[%clk 0:01:16.7]} 60... Kxh5 {[%clk
0:00:24.9]} 61. Kh3 {[%clk 0:01:17]} 61... g4+ {[%clk 0:00:25.2]} 62. Kg3 {[%clk
0:01:17.7]} 62... Kg5 {[%clk 0:00:25.8]} 63. Kh2 {[%clk 0:01:18.4]} 63... h5
{[%clk 0:00:26.4]} 64. Kg2 {[%clk 0:01:19.3]} 64... h4 {[%clk 0:00:26.9]} 65.
Kh2 {[%clk 0:01:20.2]} 65... g3+ {[%clk 0:00:25.7]} 66. Kh1 {[%clk 0:01:21.1]}
66... Kg4 {[%clk 0:00:23.9]} 67. Kg2 {[%clk 0:01:22]} 67... h3+ {[%clk
0:00:24.3]} 68. Kf1 {[%clk 0:01:22.2]} 68... g2+ {[%clk 0:00:24.5]} 0-1

[Event "Late-Titled-Tuesday-Blitz-June-04-2024"]
[Site "Chess.com"]
[Date "2024.06.04"]
[Round "10"]
[White "Zhigalko_Sergei"]
[Black "BardArtem"]
[Result "1-0"]
[WhiteElo "2918"]
[BlackElo "2750"]
[TimeControl "180+1"]
[EndTime "15:55:08 PDT"]
[Termination "Zhigalko_Sergei won by resignation"]

1. e4 {[%clk 0:03:00.9]} 1... c5 {[%clk 0:03:00.7]} 2. Nf3 {[%clk 0:02:59.8]}
2... d6 {[%clk 0:02:59.9]} 3. Bb5+ {[%clk 0:02:58.6]} 3... Nd7 {[%clk
0:02:58.8]} 4. O-O {[%clk 0:02:58]} 4... a6 {[%clk 0:02:58.3]} 5. Bd3 {[%clk
0:02:58.5]} 5... b5 {[%clk 0:02:55.2]} 6. a4 {[%clk 0:02:53.5]} 6... Bb7 {[%clk
0:02:48.3]} 7. axb5 {[%clk 0:02:42.5]} 7... axb5 {[%clk 0:02:49.2]} 8. Rxa8
{[%clk 0:02:41.7]} 8... Qxa8 {[%clk 0:02:40.4]} 9. Nc3 {[%clk 0:02:24.3]} 9...
b4 {[%clk 0:02:17.3]} 10. Nb5 {[%clk 0:02:23.9]} 10... Qc8 {[%clk 0:02:13.4]}
11. c3 {[%clk 0:02:19.9]} 11... bxc3 {[%clk 0:02:04.1]} 12. dxc3 {[%clk
0:02:11.2]} 12... Ngf6 {[%clk 0:02:01.8]} 13. Qa4 {[%clk 0:02:07.6]} 13... g6
{[%clk 0:01:46.3]} 14. e5 {[%clk 0:02:01]} 14... dxe5 {[%clk 0:01:40.1]} 15.
Nxe5 {[%clk 0:02:00.6]} 15... Bg7 {[%clk 0:01:40]} 16. Na7 {[%clk 0:01:29.7]}
16... Qa8 {[%clk 0:01:26.7]} 17. Nxd7 {[%clk 0:01:18.1]} 17... Nxd7 {[%clk
0:01:26.7]} 18. Bb5 {[%clk 0:00:41.3]} 18... O-O {[%clk 0:01:25.6]} 19. Bxd7
{[%clk 0:00:41.6]} 19... Bxg2 {[%clk 0:01:25.9]} 20. Re1 {[%clk 0:00:41.5]}
20... Bh1 {[%clk 0:01:10.6]} 21. Bh3 {[%clk 0:00:37.4]} 21... Rd8 {[%clk
0:00:44.1]} 22. Qf4 {[%clk 0:00:20.7]} 22... e5 {[%clk 0:00:30.8]} 23. Qg5
{[%clk 0:00:16.9]} 23... h6 {[%clk 0:00:22.3]} 24. Qg3 {[%clk 0:00:12.5]} 24...
Bd5 {[%clk 0:00:14.2]} 25. Nb5 {[%clk 0:00:12.6]} 25... Qb7 {[%clk 0:00:11.2]}
26. Na3 {[%clk 0:00:12.9]} 26... Kh7 {[%clk 0:00:10.5]} 27. Bg2 {[%clk
0:00:13.1]} 27... f5 {[%clk 0:00:10.4]} 28. Nc4 {[%clk 0:00:09.6]} 28... Bxg2
{[%clk 0:00:09.2]} 29. Qxg2 {[%clk 0:00:09.8]} 29... e4 {[%clk 0:00:10.1]} 30.
Qf1 {[%clk 0:00:06]} 30... Qf7 {[%clk 0:00:10.4]} 31. Qe2 {[%clk 0:00:05.6]}
31... Rd3 {[%clk 0:00:10.8]} 32. Ne3 {[%clk 0:00:05.4]} 32... f4 {[%clk
0:00:11.3]} 33. Ng2 {[%clk 0:00:04.1]} 33... Rd5 {[%clk 0:00:06.5]} 34. Qxe4
{[%clk 0:00:03.6]} 34... Re5 {[%clk 0:00:06.8]} 35. Qxf4 {[%clk 0:00:04]} 35...
Rxe1+ {[%clk 0:00:04.8]} 36. Nxe1 {[%clk 0:00:04.9]} 36... Qd5 {[%clk
0:00:04.5]} 37. Qf3 {[%clk 0:00:04.5]} 37... Qb3 {[%clk 0:00:01.8]} 38. Qe2
{[%clk 0:00:04.5]} 38... Qd5 {[%clk 0:00:01.9]} 39. Be3 {[%clk 0:00:04.8]} 39...
Qh5 {[%clk 0:00:01.6]} 40. Qxh5 {[%clk 0:00:04.8]} 40... gxh5 {[%clk 0:00:02.3]}
41. Bxc5 {[%clk 0:00:05.5]} 1-0

[Event "Late-Titled-Tuesday-Blitz-June-04-2024"]
[Site "Chess.com"]
[Date "2024.06.04"]
[Round "10"]
[White "Fore_Man"]
[Black "Jahonas"]
[Result "0-1"]
[WhiteElo "2241"]
[BlackElo "2442"]
[TimeControl "180+1"]
[EndTime "15:55:08 PDT"]
[Termination "Jahonas won by resignation"]

1. Nf3 {[%clk 0:03:00.9]} 1... d5 {[%clk 0:02:58.5]} 2. d4 {[%clk 0:03:00.4]}
2... Nf6 {[%clk 0:02:58.8]} 3. c4 {[%clk 0:03:00.8]} 3... c6 {[%clk 0:02:58.8]}
4. cxd5 {[%clk 0:03:00.1]} 4... Nxd5 {[%clk 0:02:58.6]} 5. e4 {[%clk 0:02:59.7]}
5... Nf6 {[%clk 0:02:57.1]} 6. Nc3 {[%clk 0:03:00.2]} 6... Bg4 {[%clk
0:02:56.2]} 7. Be3 {[%clk 0:02:57.8]} 7... e6 {[%clk 0:02:56.1]} 8. h3 {[%clk
0:02:56.6]} 8... Bh5 {[%clk 0:02:54.5]} 9. Bd3 {[%clk 0:02:43.9]} 9... Be7
{[%clk 0:02:51.7]} 10. Qc2 {[%clk 0:02:39.9]} 10... Bg6 {[%clk 0:02:47.5]} 11.
Ne5 {[%clk 0:02:35.5]} 11... Nbd7 {[%clk 0:02:46.1]} 12. Nxg6 {[%clk 0:02:35.1]}
12... hxg6 {[%clk 0:02:45.9]} 13. Rd1 {[%clk 0:02:27.4]} 13... O-O {[%clk
0:02:25.6]} 14. O-O {[%clk 0:02:26.4]} 14... e5 {[%clk 0:02:17.7]} 15. dxe5
{[%clk 0:02:07]} 15... Nxe5 {[%clk 0:02:17.2]} 16. Be2 {[%clk 0:02:07.5]} 16...
Qa5 {[%clk 0:02:07.5]} 17. f4 {[%clk 0:02:01.1]} 17... Bc5 {[%clk 0:02:04.8]}
18. Bxc5 {[%clk 0:01:55.4]} 18... Qxc5+ {[%clk 0:02:03]} 19. Kh2 {[%clk
0:01:56.1]} 19... Ned7 {[%clk 0:01:48.7]} 20. e5 {[%clk 0:01:55.8]} 20... Nd5
{[%clk 0:01:48.1]} 21. Bg4 {[%clk 0:01:18.5]} 21... Ne3 {[%clk 0:01:31.6]} 22.
Qd3 {[%clk 0:01:17.5]} 22... Nxf1+ {[%clk 0:01:30.7]} 23. Rxf1 {[%clk
0:01:17.7]} 23... Rad8 {[%clk 0:01:27.6]} 24. Bxd7 {[%clk 0:01:14.6]} 24... Qe7
{[%clk 0:01:18.2]} 25. Rd1 {[%clk 0:01:06.1]} 25... g5 {[%clk 0:01:15.6]} 26.
Qf5 {[%clk 0:00:52.5]} 26... g6 {[%clk 0:01:09.5]} 27. Qg4 {[%clk 0:00:27.8]}
27... gxf4 {[%clk 0:01:09]} 28. e6 {[%clk 0:00:27.5]} 28... Kg7 {[%clk
0:01:00.5]} 29. Re1 {[%clk 0:00:07.2]} 29... Rxd7 {[%clk 0:00:50.6]} 30. exd7
{[%clk 0:00:03.2]} 30... Qxe1 {[%clk 0:00:50]} 31. Qxf4 {[%clk 0:00:02.6]} 31...
Qe7 {[%clk 0:00:49.1]} 32. Qd4+ {[%clk 0:00:02.8]} 32... f6 {[%clk 0:00:47.2]}
33. Ne4 {[%clk 0:00:02.9]} 33... Rd8 {[%clk 0:00:40.2]} 34. Nc5 {[%clk
0:00:03.1]} 34... b6 {[%clk 0:00:30.7]} 35. Ne4 {[%clk 0:00:03.2]} 35... Rxd7
{[%clk 0:00:28.6]} 36. Qc4 {[%clk 0:00:03.9]} 36... Qe5+ {[%clk 0:00:27.9]} 37.
Kg1 {[%clk 0:00:04.3]} 37... Rd1+ {[%clk 0:00:27.3]} 38. Kf2 {[%clk 0:00:04.6]}
38... Qd4+ {[%clk 0:00:27.7]} 39. Qxd4 {[%clk 0:00:04.5]} 39... Rxd4 {[%clk
0:00:28.6]} 40. Ke3 {[%clk 0:00:02]} 40... Rd7 {[%clk 0:00:27.2]} 41. b3 {[%clk
0:00:02.5]} 41... Kf7 {[%clk 0:00:26.8]} 42. Kf4 {[%clk 0:00:03]} 42... Ke6
{[%clk 0:00:26.4]} 43. g4 {[%clk 0:00:03.6]} 43... Rd1 {[%clk 0:00:23.1]} 44. h4
{[%clk 0:00:03.6]} 44... Ra1 {[%clk 0:00:22.3]} 45. h5 {[%clk 0:00:02.9]} 45...
gxh5 {[%clk 0:00:20.2]} 46. gxh5 {[%clk 0:00:03.8]} 46... Rxa2 {[%clk
0:00:17.6]} 47. h6 {[%clk 0:00:02.5]} 47... Rh2 {[%clk 0:00:17.2]} 0-1

[Event "Late-Titled-Tuesday-Blitz-June-04-2024"]
[Site "Chess.com"]
[Date "2024.06.04"]
[Round "10"]
[White "Oleg_Papayan"]
[Black "cthulhuuu"]
[Result "0-1"]
[WhiteElo "2555"]
[BlackElo "2453"]
[TimeControl "180+1"]
[EndTime "15:55:10 PDT"]
[Termination "cthulhuuu won by resignation"]

1. e4 {[%clk 0:02:59]} 1... d6 {[%clk 0:02:59.7]} 2. d4 {[%clk 0:02:59]} 2...
Nf6 {[%clk 0:03:00.4]} 3. Nc3 {[%clk 0:02:59.3]} 3... c6 {[%clk 0:03:01.1]} 4.
f4 {[%clk 0:02:58.6]} 4... Qb6 {[%clk 0:03:01.8]} 5. Nf3 {[%clk 0:02:58.9]} 5...
Bg4 {[%clk 0:03:02.2]} 6. Be2 {[%clk 0:02:59.2]} 6... e6 {[%clk 0:03:02.4]} 7.
h3 {[%clk 0:02:59.3]} 7... Bxf3 {[%clk 0:03:02.7]} 8. Bxf3 {[%clk 0:03:00.2]}
8... d5 {[%clk 0:03:03.6]} 9. e5 {[%clk 0:02:58.1]} 9... Nfd7 {[%clk 0:03:03.8]}
10. Ne2 {[%clk 0:02:58.8]} 10... c5 {[%clk 0:03:03.6]} 11. c3 {[%clk 0:02:59.4]}
11... Nc6 {[%clk 0:03:03]} 12. O-O {[%clk 0:02:57.2]} 12... g6 {[%clk 0:02:54]}
13. Kh1 {[%clk 0:02:52.6]} 13... cxd4 {[%clk 0:02:53.4]} 14. cxd4 {[%clk
0:02:39.9]} 14... Be7 {[%clk 0:02:52.4]} 15. b3 {[%clk 0:02:29.7]} 15... O-O
{[%clk 0:02:49.2]} 16. f5 {[%clk 0:02:29]} 16... gxf5 {[%clk 0:02:14.2]} 17. Bh6
{[%clk 0:02:29.3]} 17... Rfe8 {[%clk 0:02:13.7]} 18. Qd2 {[%clk 0:02:28.7]}
18... Nf8 {[%clk 0:02:10.6]} 19. Bxf8 {[%clk 0:02:04.2]} 19... Rxf8 {[%clk
0:01:58.5]} 20. g4 {[%clk 0:01:44.2]} 20... Qb4 {[%clk 0:01:29.9]} 21. Qf4
{[%clk 0:01:31]} 21... fxg4 {[%clk 0:01:19.8]} 22. Rg1 {[%clk 0:01:22.8]} 22...
Kh8 {[%clk 0:01:19.5]} 23. Rxg4 {[%clk 0:01:22.2]} 23... f5 {[%clk 0:00:53.8]}
24. exf6 {[%clk 0:01:07.2]} 24... Rxf6 {[%clk 0:00:53.4]} 25. Qe3 {[%clk
0:00:54.3]} 25... Raf8 {[%clk 0:00:49.3]} 26. Rag1 {[%clk 0:00:54.1]} 26... Qd6
{[%clk 0:00:17.2]} 27. Qg5 {[%clk 0:00:51.2]} 27... Rg6 {[%clk 0:00:15.4]} 28.
Qh5 {[%clk 0:00:49]} 28... Rxg4 {[%clk 0:00:07]} 29. Qxg4 {[%clk 0:00:49.9]}
29... Bf6 {[%clk 0:00:06.6]} 30. a4 {[%clk 0:00:20.6]} 30... Qe7 {[%clk
0:00:06.8]} 31. a5 {[%clk 0:00:14.7]} 31... Qf7 {[%clk 0:00:06.8]} 32. a6 {[%clk
0:00:14.4]} 32... bxa6 {[%clk 0:00:06.2]} 33. Nf4 {[%clk 0:00:12.8]} 33... Nxd4
{[%clk 0:00:04.7]} 34. Bxd5 {[%clk 0:00:13.3]} 34... exd5 {[%clk 0:00:03.5]} 35.
Nh5 {[%clk 0:00:13.2]} 35... Rg8 {[%clk 0:00:03.3]} 36. Qxg8+ {[%clk 0:00:11.6]}
36... Qxg8 {[%clk 0:00:04.2]} 37. Rxg8+ {[%clk 0:00:12.1]} 37... Kxg8 {[%clk
0:00:04.9]} 38. Nxf6+ {[%clk 0:00:13]} 38... Kf7 {[%clk 0:00:04.4]} 39. Nxd5
{[%clk 0:00:13.9]} 39... Nxb3 {[%clk 0:00:04.9]} 40. Nb4 {[%clk 0:00:14.6]}
40... a5 {[%clk 0:00:05.1]} 41. Nc6 {[%clk 0:00:15.4]} 41... a4 {[%clk
0:00:05.6]} 42. Nb4 {[%clk 0:00:13.6]} 42... a3 {[%clk 0:00:05.7]} 43. Kg2
{[%clk 0:00:14.1]} 43... Nc1 {[%clk 0:00:05.9]} 44. Kf3 {[%clk 0:00:15]} 44...
a2 {[%clk 0:00:06.3]} 0-1